fUST/lending_fUST_20250810
["ID","MTS","AMOUNT","RATE_DAILY","PERIOD"]
[378263003,1754802646621,-183.48743974,0.00022999,2]
[378263004,1754802646634,-500.0,0.00022999,2]
[378263005,1754802646645,-500.0,0.00022999,2]
[378263006,1754802646656,-500.0,0.00022999,2]
[378263007,1754802646667,-500.0,0.00022999,2]
[378263008,1754802646679,-650.0,0.00022999,2]
[378263009,1754802646688,-500.0,0.00022999,2]
[378263010,1754802646699,-1868.96,0.00022999,2]
[378263011,1754802646710,-16359.52318875,0.00023,2]
[378263012,1754802646722,-9681.82409333,0.00023,2]
[378263013,1754802646734,-401.92323987,0.00023,2]
[378263014,1754802646750,-461.49325317,0.00023,2]
[378263015,1754802646762,-801.06481941,0.00023,2]
[378263016,1754802646774,-718.60000001,0.00023,2]
[378263017,1754802647322,302.72757545,0.00020895,6]
[378263018,1754802678962,398.0914496,0.000209,2]
[378263019,1754802714707,5627.2155047,0.0002096,2]
[378263020,1754802829254,1577.07157122,0.000199,2]
[378263024,1754802982402,265.39429974,0.000209,2]
[378263025,1754803021752,1519.60720023,0.000199,2]
[378263026,1754803025412,16095.60736566,0.00020852,2]
[378263027,1754803025435,8804.39263434,0.00020852,2]
[378263028,1754803098723,331.033048,0.00013699,2]
[378263029,1754803098932,331.033048,0.00020187,2]
[378263031,1754803227492,5000.0,0.00021,2]
[378263032,1754803237838,1468.83223445,0.000199,2]
[378263033,1754803284091,176.92953316,0.000209,2]
[378263037,1754803440390,177.53081,0.00020633,2]
[378263038,1754803443622,1419.18514214,0.000199,2]
[378263042,1754803585242,150.0,0.000189,2]
[378263043,1754803655078,1372.70471111,0.000199,2]
[378263045,1754803670287,20768.3588388,0.00018,2]
[378263046,1754803670310,24633.83672066,0.00018,2]
[378263049,1754803674326,4548.06578304,0.00018,2]
[378263051,1754803712635,9401.10877154,0.0002,2]
[378263052,1754803714976,1416.98872476,0.00017,2]
[378263053,1754803714998,34701.8682031,0.00017,2]
[378263054,1754803717135,364.04606541,0.0002,2]
[378263055,1754803717793,4934.08573149,0.00018,2]
[378263056,1754803717815,18897.39462931,0.00018,2]
[378263058,1754803719447,372.16942045,0.000149,2]
[378263059,1754803719591,1000.0,0.0001,2]
[378263060,1754803720377,19730.43595024,0.00018,2]
[378263061,1754803720400,9632.403236,0.00018,2]
[378263062,1754803723456,23000.0,0.0002,2]
[378263063,1754803724248,211.2803933,0.00016,2]
[378263064,1754803724324,7156.3163707,0.0002,2]
[378263065,1754803724346,9591.39978963,0.0002,2]
[378263066,1754803742003,5000.0,0.00021,2]
[378263067,1754803744067,248.0,0.00031478,120]
[378263068,1754803758319,3746.0189685,0.00021,2]
[378263069,1754803812175,576.594217,0.00020489,2]
[378263071,1754803824443,5000.0,0.00021,2]
[378263280,1754803838278,-203.07870434,0.00021179,2]
[378263281,1754803838288,-300.0,0.00021472,2]
[378263282,1754803838298,-1200.0,0.00021472,2]
[378263283,1754803838307,-280.65641991,0.00021473,2]
[378263284,1754803838317,-500.0,0.00021473,2]
[378263285,1754803838326,-460.0,0.00021494,2]
[378263286,1754803838336,-460.0,0.00021494,2]
[378263287,1754803838345,-460.0,0.00021494,2]
[378263288,1754803838355,-560.06,0.00021494,2]
[378263289,1754803838364,-460.0,0.00021494,2]
[378263290,1754803838373,-975.8,0.00021494,2]
[378263291,1754803838383,-460.0,0.00021494,2]
[378263292,1754803838392,-247.53325902,0.00021494,2]
[378263293,1754803838401,-928.96,0.00021494,2]
[378263294,1754803838411,-460.0,0.00021494,2]
[378263295,1754803838420,-344.53184898,0.00021494,2]
[378263296,1754803838429,-460.0,0.00021494,2]
[378263297,1754803838439,-460.0,0.00021494,2]
[378263298,1754803838448,-460.0,0.00021494,2]
[378263299,1754803838458,-460.0,0.00021494,2]
[378263300,1754803838467,-460.0,0.00021495,2]
[378263301,1754803838478,-460.0,0.00021495,2]
[378263302,1754803838487,-460.0,0.00021495,2]
[378263303,1754803838497,-269.18,0.00021495,2]
[378263304,1754803838506,-460.0,0.00021495,2]
[378263305,1754803838516,-460.0,0.00021495,2]
[378263306,1754803838529,-460.0,0.00021495,2]
[378263307,1754803838538,-460.0,0.00021495,2]
[378263308,1754803838548,-460.0,0.00021495,2]
[378263309,1754803838558,-460.0,0.00021495,2]
[378263310,1754803838567,-554.28360187,0.00021495,2]
[378263311,1754803838576,-460.0,0.00021495,2]
[378263312,1754803838586,-460.0,0.00021495,2]
[378263313,1754803838595,-460.0,0.00021495,2]
[378263314,1754803838604,-460.0,0.00021495,2]
[378263315,1754803838614,-460.0,0.00021495,2]
[378263316,1754803838623,-460.0,0.00021495,2]
[378263317,1754803838633,-807.47,0.00021495,2]
[378263318,1754803838642,-312.58425432,0.00021495,2]
[378263319,1754803838652,-460.0,0.00021495,2]
[378263320,1754803838662,-918.15,0.00021495,2]
[378263321,1754803838672,-509.51,0.00021495,2]
[378263322,1754803838681,-460.0,0.00021495,2]
[378263323,1754803838692,-460.0,0.00021495,2]
[378263324,1754803838702,-460.0,0.00021495,2]
[378263325,1754803838711,-460.0,0.00021495,2]
[378263326,1754803838721,-460.0,0.00021495,2]
[378263327,1754803838730,-460.0,0.00021495,2]
[378263328,1754803838739,-460.0,0.00021495,2]
[378263329,1754803838749,-460.0,0.00021495,2]
[378263330,1754803838758,-460.0,0.00021495,2]
[378263331,1754803838768,-460.0,0.00021495,2]
[378263332,1754803838778,-460.0,0.00021495,2]
[378263333,1754803838787,-460.0,0.00021495,2]
[378263334,1754803838798,-460.0,0.00021495,2]
[378263335,1754803838808,-460.0,0.00021495,2]
[378263336,1754803838817,-537.2454953,0.00021495,2]
[378263337,1754803838827,-460.0,0.00021495,2]
[378263338,1754803838836,-460.0,0.00021496,2]
[378263339,1754803838846,-460.0,0.00021496,2]
[378263340,1754803838855,-424.48,0.00021496,2]
[378263341,1754803838865,-183.53028677,0.00021496,2]
[378263342,1754803838875,-460.0,0.00021496,2]
[378263343,1754803838884,-460.0,0.00021496,2]
[378263344,1754803838893,-460.0,0.00021496,2]
[378263345,1754803838903,-460.0,0.00021496,2]
[378263346,1754803838912,-466.6756913,0.00021496,2]
[378263347,1754803838921,-462.60648983,0.00021496,2]
[378263348,1754803838930,-460.0,0.00021496,2]
[378263349,1754803838939,-460.0,0.00021496,2]
[378263350,1754803838949,-564.73,0.00021496,2]
[378263351,1754803838958,-461.22921877,0.00021496,2]
[378263352,1754803838967,-527.53,0.00021496,2]
[378263353,1754803838978,-460.0,0.00021496,2]
[378263354,1754803838988,-199.75199465,0.00021496,2]
[378263355,1754803838997,-460.0,0.00021496,2]
[378263356,1754803839006,-460.0,0.00021496,2]
[378263357,1754803839016,-460.0,0.00021498,2]
[378263358,1754803839026,-460.0,0.00021498,2]
[378263359,1754803839035,-492.55,0.00021498,2]
[378263360,1754803839044,-1372.70471104,0.00021655,2]
[378263361,1754803839054,-460.0,0.00021768,2]
[378263362,1754803839064,-460.0,0.00021768,2]
[378263363,1754803839076,-560.06,0.00021768,2]
[378263364,1754803839086,-460.0,0.00021768,2]
[378263365,1754803839095,-975.8,0.00021768,2]
[378263366,1754803839107,-460.0,0.00021768,2]
[378263367,1754803839117,-928.96,0.00021768,2]
[378263368,1754803839127,-460.0,0.00021768,2]
[378263369,1754803839136,-460.0,0.00021768,2]
[378263370,1754803839147,-460.0,0.00021768,2]
[378263371,1754803839156,-524.33,0.00021768,2]
[378263372,1754803839165,-460.0,0.00021769,2]
[378263373,1754803839175,-460.0,0.00021769,2]
[378263374,1754803839184,-460.0,0.00021769,2]
[378263375,1754803839194,-466.56056554,0.00021769,2]
[378263376,1754803839203,-465.14173603,0.00021769,2]
[378263377,1754803839213,-463.61990087,0.00021769,2]
[378263378,1754803839222,-501.85,0.00021769,2]
[378263379,1754803839231,-460.0,0.00021769,2]
[378263380,1754803839241,-460.0,0.00021769,2]
[378263381,1754803839251,-207.14909925,0.00021769,2]
[378263382,1754803839260,-460.0,0.00021769,2]
[378263383,1754803839269,-460.0,0.00021769,2]
[378263384,1754803839281,-460.0,0.00021769,2]
[378263385,1754803839290,-460.0,0.00021769,2]
[378263386,1754803839469,-271.67873486,0.00021769,2]
[378263387,1754803839481,-460.0,0.00021769,2]
[378263388,1754803839491,-460.0,0.00021769,2]
[378263389,1754803839500,-460.0,0.00021769,2]
[378263390,1754803839511,-460.0,0.00021769,2]
[378263391,1754803839520,-460.0,0.00021769,2]
[378263392,1754803839531,-460.0,0.00021769,2]
[378263393,1754803839540,-460.0,0.00021769,2]
[378263394,1754803839550,-460.0,0.00021769,2]
[378263395,1754803839559,-460.0,0.00021769,2]
[378263396,1754803839568,-460.0,0.00021769,2]
[378263397,1754803839578,-807.47,0.00021769,2]
[378263398,1754803839587,-439.86362386,0.00021769,2]
[378263399,1754803839597,-918.15,0.00021769,2]
[378263400,1754803839607,-460.0,0.00021769,2]
[378263401,1754803839617,-460.0,0.00021769,2]
[378263402,1754803839626,-460.0,0.00021769,2]
[378263403,1754803839636,-460.0,0.00021769,2]
[378263405,1754803839646,-460.0,0.00021769,2]
[378263406,1754803839656,-460.0,0.00021769,2]
[378263407,1754803839666,-460.0,0.00021769,2]
[378263408,1754803839676,-460.0,0.00021769,2]
[378263409,1754803839685,-460.0,0.00021769,2]
[378263410,1754803839695,-460.0,0.00021769,2]
[378263411,1754803839704,-460.0,0.00021769,2]
[378263412,1754803839714,-460.0,0.00021769,2]
[378263413,1754803839724,-460.0,0.00021769,2]
[378263414,1754803839734,-460.0,0.00021769,2]
[378263415,1754803839743,-460.0,0.00021769,2]
[378263416,1754803839753,-460.0,0.00021769,2]
[378263417,1754803839763,-460.0,0.0002177,2]
[378263418,1754803839772,-464.18667478,0.0002177,2]
[378263419,1754803839783,-460.0,0.0002177,2]
[378263420,1754803839793,-460.0,0.0002177,2]
[378263421,1754803839803,-460.0,0.0002177,2]
[378263422,1754803839812,-564.73,0.0002177,2]
[378263423,1754803839822,-527.53,0.0002177,2]
[378263424,1754803839842,-460.0,0.0002177,2]
[378263425,1754803839852,-460.0,0.0002177,2]
[378263426,1754803839861,-460.0,0.00021772,2]
[378263427,1754803839872,-460.0,0.00021772,2]
[378263429,1754803839882,-492.55,0.00021772,2]
[378263430,1754803839892,-500.0,0.00021773,2]
[378263431,1754803839902,-500.0,0.00021773,2]
[378263432,1754803839912,-500.0,0.00021773,2]
[378263433,1754803839921,-504.92985237,0.00021773,2]
[378263434,1754803839931,-158.09940318,0.00021773,2]
[378263435,1754803839942,-500.0,0.00021773,2]
[378263437,1754803839952,-500.0,0.00021773,2]
[378263439,1754803839961,-500.0,0.00021773,2]
[378263441,1754803839971,-261.34,0.00022,2]
[378263443,1754803839981,-159.0,0.00022,2]
[378263444,1754803839991,-511.77739619,0.00022021,2]
[378263446,1754803840001,-460.0,0.00022042,2]
[378263448,1754803840011,-460.0,0.00022042,2]
[378263450,1754803840020,-560.06,0.00022042,2]
[378263452,1754803840032,-975.8,0.00022042,2]
[378263454,1754803840042,-460.0,0.00022042,2]
[378263456,1754803840052,-928.96,0.00022042,2]
[378263458,1754803840061,-460.0,0.00022042,2]
[378263460,1754803840074,-460.0,0.00022042,2]
[378263462,1754803840084,-460.0,0.00022042,2]
[378263464,1754803840093,-1791.08,0.00022042,2]
[378263466,1754803840103,-460.0,0.00022043,2]
[378263468,1754803840114,-460.0,0.00022043,2]
[378263470,1754803840123,-460.0,0.00022043,2]
[378263472,1754803840133,-460.0,0.00022043,2]
[378263474,1754803840143,-460.0,0.00022043,2]
[378263476,1754803840153,-460.0,0.00022043,2]
[378263478,1754803840163,-460.0,0.00022043,2]
[378263480,1754803840172,-460.0,0.00022043,2]
[378263482,1754803840182,-460.0,0.00022043,2]
[378263484,1754803840191,-460.0,0.00022043,2]
[378263486,1754803840201,-460.0,0.00022043,2]
[378263488,1754803840210,-464.92999108,0.00022043,2]
[378263490,1754803840220,-460.0,0.00022043,2]
[378263492,1754803840230,-460.0,0.00022043,2]
[378263494,1754803840240,-460.0,0.00022043,2]
[378263496,1754803840249,-460.0,0.00022043,2]
[378263498,1754803840259,-807.47,0.00022043,2]
[378263500,1754803840269,-918.15,0.00022043,2]
[378263502,1754803840280,-314.42,0.00022043,2]
[378263504,1754803840291,-460.0,0.00022043,2]
[378263506,1754803840300,-460.0,0.00022043,2]
[378263508,1754803840309,-331.87,0.00022043,2]
[378263510,1754803840319,-460.0,0.00022043,2]
[378263512,1754803840328,-460.0,0.00022043,2]
[378263514,1754803840338,-460.0,0.00022043,2]
[378263516,1754803840348,-460.0,0.00022043,2]
[378263518,1754803840358,-460.0,0.00022043,2]
[378263520,1754803840367,-460.0,0.00022043,2]
[378263522,1754803840381,-460.0,0.00022043,2]
[378263524,1754803840391,-460.0,0.00022043,2]
[378263526,1754803840400,-460.0,0.00022043,2]
[378263528,1754803840410,-460.0,0.00022043,2]
[378263530,1754803840426,-460.0,0.00022044,2]
[378263532,1754803840437,-460.0,0.00022044,2]
[378263534,1754803840446,-460.0,0.00022044,2]
[378263536,1754803840456,-564.73,0.00022044,2]
[378263538,1754803840466,-527.53,0.00022044,2]
[378263540,1754803840476,-460.0,0.00022044,2]
[378263542,1754803840487,-460.0,0.00022044,2]
[378263544,1754803840496,-460.0,0.00022046,2]
[378263546,1754803840507,-460.0,0.00022046,2]
[378263548,1754803840517,-492.55,0.00022046,2]
[378263550,1754803840528,-500.0,0.00022243,2]
[378263552,1754803840538,-151.0,0.00022243,2]
[378263554,1754803840548,-500.0,0.00022243,2]
[378263556,1754803840558,-301.71324871,0.00022243,2]
[378263558,1754803840567,-530.84918062,0.00022243,2]
[378263560,1754803840577,-151.0,0.00022243,2]
[378263562,1754803840586,-151.0,0.00022243,2]
[378263564,1754803840595,-151.0,0.00022243,2]
[378263566,1754803840604,-151.0,0.00022243,2]
[378263568,1754803840614,-151.0,0.00022243,2]
[378263570,1754803840623,-151.0,0.00022243,2]
[378263572,1754803840632,-151.0,0.00022243,2]
[378263574,1754803840641,-151.0,0.00022243,2]
[378263576,1754803840651,-151.0,0.00022243,2]
[378263578,1754803840660,-151.0,0.00022243,2]
[378263579,1754803840669,-151.0,0.00022243,2]
[378263581,1754803840679,-151.0,0.00022243,2]
[378263583,1754803840689,-151.0,0.00022243,2]
[378263585,1754803840699,-151.0,0.00022243,2]
[378263587,1754803840710,-151.0,0.00022243,2]
[378263589,1754803840719,-151.0,0.00022243,2]
[378263591,1754803840728,-151.0,0.00022243,2]
[378263592,1754803840738,-275.68,0.00022316,2]
[378263594,1754803840747,-460.0,0.00022316,2]
[378263597,1754803840757,-560.06,0.00022316,2]
[378263598,1754803840767,-975.8,0.00022316,2]
[378263601,1754803840777,-460.0,0.00022316,2]
[378263602,1754803840787,-928.96,0.00022316,2]
[378263605,1754803840797,-460.0,0.00022316,2]
[378263607,1754803840806,-460.0,0.00022316,2]
[378263609,1754803840816,-460.0,0.00022316,2]
[378263610,1754803840825,-460.0,0.00022317,2]
[378263612,1754803840834,-460.0,0.00022317,2]
[378263614,1754803840843,-460.0,0.00022317,2]
[378263616,1754803840853,-460.0,0.00022317,2]
[378263618,1754803840863,-460.0,0.00022317,2]
[378263620,1754803840872,-460.0,0.00022317,2]
[378263622,1754803840881,-460.0,0.00022317,2]
[378263624,1754803840891,-460.0,0.00022317,2]
[378263626,1754803840900,-460.0,0.00022317,2]
[378263628,1754803840910,-460.0,0.00022317,2]
[378263630,1754803840920,-460.0,0.00022317,2]
[378263632,1754803840929,-460.0,0.00022317,2]
[378263634,1754803840938,-460.0,0.00022317,2]
[378263636,1754803840947,-807.47,0.00022317,2]
[378263638,1754803840957,-918.15,0.00022317,2]
[378263639,1754803840966,-460.0,0.00022317,2]
[378263640,1754803840975,-460.0,0.00022317,2]
[378263641,1754803840985,-460.0,0.00022317,2]
[378263642,1754803840994,-460.0,0.00022317,2]
[378263644,1754803841003,-460.0,0.00022317,2]
[378263646,1754803841013,-460.0,0.00022317,2]
[378263648,1754803841022,-460.0,0.00022317,2]
[378263650,1754803841033,-460.0,0.00022317,2]
[378263652,1754803841048,-460.0,0.00022317,2]
[378263654,1754803841061,-460.0,0.00022317,2]
[378263656,1754803841077,-460.0,0.00022317,2]
[378263657,1754803841090,-460.0,0.00022317,2]
[378263658,1754803841102,-460.0,0.00022318,2]
[378263659,1754803841116,-460.0,0.00022318,2]
[378263660,1754803841128,-460.0,0.00022318,2]
[378263661,1754803841139,-564.73,0.00022318,2]
[378263662,1754803841151,-527.53,0.00022318,2]
[378263663,1754803841162,-460.0,0.00022318,2]
[378263664,1754803841174,-460.0,0.00022318,2]
[378263665,1754803841186,-460.0,0.0002232,2]
[378263666,1754803841197,-460.0,0.0002232,2]
[378263667,1754803841209,-492.55,0.0002232,2]
[378263668,1754803841220,-160.0,0.0002232,2]
[378263669,1754803841232,-160.0,0.0002232,2]
[378263670,1754803841243,-1000.0,0.00022321,2]
[378263671,1754803841255,-508.95318751,0.00022321,2]
[378263672,1754803841267,-213.68656915,0.00022321,2]
[378263673,1754803841277,-1000.0,0.00022321,2]
[378263674,1754803841289,-500.0,0.00022327,2]
[378263675,1754803841301,-500.0,0.00022333,2]
[378263676,1754803841312,-500.0,0.00022373,2]
[378263677,1754803841324,-200.0,0.00022568,15]
[378263678,1754803841336,-300.0,0.00022568,15]
[378263679,1754803841347,-460.0,0.0002259,2]
[378263680,1754803841359,-560.06,0.0002259,2]
[378263681,1754803841369,-975.8,0.0002259,2]
[378263682,1754803841379,-460.0,0.0002259,2]
[378263683,1754803841390,-928.96,0.0002259,2]
[378263684,1754803841402,-460.0,0.0002259,2]
[378263685,1754803841413,-460.0,0.0002259,2]
[378263686,1754803841424,-460.0,0.0002259,2]
[378263687,1754803841435,-460.0,0.00022591,2]
[378263688,1754803841445,-460.0,0.00022591,2]
[378263689,1754803841457,-460.0,0.00022591,2]
[378263690,1754803841469,-460.0,0.00022591,2]
[378263691,1754803841481,-460.0,0.00022591,2]
[378263692,1754803841492,-460.0,0.00022591,2]
[378263693,1754803841503,-460.0,0.00022591,2]
[378263694,1754803841514,-460.0,0.00022591,2]
[378263695,1754803841524,-460.0,0.00022591,2]
[378263696,1754803841538,-460.0,0.00022591,2]
[378263697,1754803841548,-460.0,0.00022591,2]
[378263698,1754803841558,-460.0,0.00022591,2]
[378263699,1754803841569,-807.47,0.00022591,2]
[378263700,1754803841580,-918.15,0.00022591,2]
[378263701,1754803841591,-460.0,0.00022591,2]
[378263702,1754803841602,-460.0,0.00022591,2]
[378263703,1754803841613,-460.0,0.00022591,2]
[378263704,1754803841625,-460.0,0.00022591,2]
[378263705,1754803841635,-460.0,0.00022591,2]
[378263706,1754803841647,-460.0,0.00022591,2]
[378263707,1754803841658,-460.0,0.00022591,2]
[378263708,1754803841669,-460.0,0.00022591,2]
[378263709,1754803841680,-460.0,0.00022591,2]
[378263710,1754803841692,-460.0,0.00022591,2]
[378263711,1754803841703,-460.0,0.00022591,2]
[378263712,1754803841714,-460.0,0.00022591,2]
[378263713,1754803841725,-460.0,0.00022592,2]
[378263714,1754803841736,-460.0,0.00022592,2]
[378263715,1754803841747,-270.44894224,0.00022592,2]
[378263716,1754803841758,-564.73,0.00022592,2]
[378263717,1754803841770,-527.53,0.00022592,2]
[378263718,1754803841780,-460.0,0.00022592,2]
[378263719,1754803841790,-460.0,0.00022592,2]
[378263720,1754803841800,-460.0,0.00022594,2]
[378263721,1754803841810,-460.0,0.00022594,2]
[378263722,1754803841820,-492.55,0.00022594,2]
[378263723,1754803841830,-263.21,0.00022757,3]
[378263724,1754803841840,-789.66,0.00022757,3]
[378263725,1754803841851,-215.44987349,0.00022766,2]
[378263726,1754803841862,-231.96268195,0.00022766,2]
[378263727,1754803841874,-843.0869304,0.00022766,2]
[378263728,1754803841886,-461.62346162,0.00022766,2]
[378263729,1754803841898,-216.64838636,0.00022766,2]
[378263730,1754803841908,-160.0,0.00022766,2]
[378263731,1754803841918,-460.0,0.00022864,2]
[378263732,1754803841928,-560.06,0.00022864,2]
[378263733,1754803841938,-975.8,0.00022864,2]
[378263734,1754803841948,-460.0,0.00022864,2]
[378263735,1754803841959,-928.96,0.00022864,2]
[378263736,1754803841969,-460.0,0.00022864,2]
[378263737,1754803841980,-460.0,0.00022864,2]
[378263738,1754803841992,-460.0,0.00022864,2]
[378263739,1754803842002,-460.0,0.00022865,2]
[378263740,1754803842013,-460.0,0.00022865,2]
[378263741,1754803842023,-498.91552715,0.00022865,2]
[378263742,1754803842033,-460.0,0.00022865,2]
[378263743,1754803842043,-460.0,0.00022865,2]
[378263744,1754803842052,-460.0,0.00022865,2]
[378263745,1754803842062,-460.0,0.00022865,2]
[378263746,1754803842072,-460.0,0.00022865,2]
[378263747,1754803842087,-460.0,0.00022865,2]
[378263748,1754803842097,-460.0,0.00022865,2]
[378263749,1754803842107,-460.0,0.00022865,2]
[378263750,1754803842119,-460.0,0.00022865,2]
[378263751,1754803842130,-807.47,0.00022865,2]
[378263752,1754803842140,-918.15,0.00022865,2]
[378263753,1754803842151,-460.0,0.00022865,2]
[378263754,1754803842162,-460.0,0.00022865,2]
[378263755,1754803842174,-460.0,0.00022865,2]
[378263756,1754803842183,-460.0,0.00022865,2]
[378263757,1754803842194,-460.0,0.00022865,2]
[378263758,1754803842204,-460.0,0.00022865,2]
[378263759,1754803842215,-585.2,0.00022865,2]
[378263760,1754803842226,-460.0,0.00022865,2]
[378263761,1754803842237,-460.0,0.00022865,2]
[378263762,1754803842248,-460.0,0.00022865,2]
[378263763,1754803842258,-460.0,0.00022865,2]
[378263764,1754803842269,-460.0,0.00022865,2]
[378263765,1754803842280,-460.0,0.00022866,2]
[378263766,1754803842290,-460.0,0.00022866,2]
[378263767,1754803842302,-564.73,0.00022866,2]
[378263768,1754803842313,-527.53,0.00022866,2]
[378263769,1754803842324,-460.0,0.00022866,2]
[378263770,1754803842335,-460.0,0.00022866,2]
[378263771,1754803842347,-460.0,0.00022868,2]
[378263772,1754803842359,-460.0,0.00022868,2]
[378263773,1754803842369,-492.55,0.00022868,2]
[378263774,1754803842379,-1500.0,0.00022868,2]
[378263775,1754803842391,-1500.0,0.00022868,2]
[378263776,1754803842401,-612.23277963,0.00022875,2]
[378263777,1754803842411,-3269.63467242,0.000229,2]
[378263778,1754803842422,-155.53557546,0.00022973,2]
[378263779,1754803842433,-501.45717092,0.00022973,2]
[378263780,1754803842443,-501.2152839,0.00022973,2]
[378263781,1754803842453,-500.0,0.00022973,2]
[378263782,1754803842464,-500.02478921,0.00022973,2]
[378263783,1754803842475,-300.0,0.00022973,2]
[378263784,1754803842485,-514.72331074,0.00022973,2]
[378263785,1754803842496,-500.0,0.00022973,2]
[378263786,1754803842507,-500.0,0.00022973,2]
[378263787,1754803842518,-500.0,0.00022973,2]
[378263788,1754803842528,-500.0,0.00022973,2]
[378263789,1754803842539,-500.0,0.00022973,2]
[378263790,1754803842549,-500.0,0.00022973,2]
[378263791,1754803842559,-160.0,0.00022997,2]
[378263792,1754803842570,-1934.89087114,0.00022999,2]
[378263793,1754803842581,-500.0,0.00022999,2]
[378263794,1754803842591,-500.0,0.00022999,2]
[378263795,1754803842602,-633.44120782,0.00022999,2]
[378263796,1754803842613,-500.0,0.00022999,2]
[378263797,1754803842623,-500.0,0.00022999,2]
[378263798,1754803842634,-500.0,0.00022999,2]
[378263799,1754803842644,-500.0,0.00022999,2]
[378263800,1754803842655,-500.0,0.00022999,2]
[378263801,1754803842666,-500.0,0.00022999,2]
[378263802,1754803842676,-500.0,0.00022999,2]
[378263804,1754803842686,-500.0,0.00022999,2]
[378263805,1754803842697,-500.0,0.00022999,2]
[378263806,1754803842707,-500.0,0.00022999,2]
[378263808,1754803842717,-473.30315272,0.00022999,2]
[378263810,1754803842727,-500.0,0.00022999,2]
[378263812,1754803842738,-500.0,0.00022999,2]
[378263813,1754803842748,-175.54858184,0.00022999,2]
[378263814,1754803842759,-500.0,0.00022999,2]
[378263815,1754803842769,-500.0,0.00022999,2]
[378263816,1754803842780,-500.0,0.00022999,2]
[378263817,1754803842791,-500.0,0.00022999,2]
[378263819,1754803842959,-500.0,0.00022999,2]
[378263820,1754803842971,-500.0,0.00022999,2]
[378263821,1754803842980,-500.0,0.00022999,2]
[378263822,1754803842989,-500.0,0.00022999,2]
[378263823,1754803842999,-300.0,0.00022999,2]
[378263824,1754803843008,-460.0,0.00022999,2]
[378263825,1754803843018,-530.65,0.00022999,2]
[378263826,1754803843028,-151575.57140546,0.00023,2]
[378263827,1754803843037,-160.0,0.00023,2]
[378263828,1754803843047,-1759.0,0.00023,3]
[378263829,1754803843056,-1759.0,0.00023,3]
[378263830,1754803843065,-1759.0,0.00023,3]
[378263831,1754803843074,-1759.0,0.00023,3]
[378263832,1754803843083,-1759.0,0.00023,3]
[378263833,1754803843096,-1759.0,0.00023,3]
[378263834,1754803843105,-1759.0,0.00023,3]
[378263835,1754803843114,-1759.0,0.00023,3]
[378263836,1754803843123,-1759.0,0.00023,3]
[378263837,1754803843133,-1759.0,0.00023,3]
[378263838,1754803843142,-1759.0,0.00023,3]
[378263839,1754803843151,-1759.0,0.00023,3]
[378263840,1754803843160,-1759.0,0.00023,3]